bitfinex/quotes_SOLUSD_20251013
["timestamp","ask_amount","ask_price","bid_price","bid_amount"]
[1760398577978,1.41256097,208.6,208.59,11.98470696]
[1760398578178,1.41256097,208.61,208.59,11.98470696]
[1760398578689,2.06256097,208.62,208.59,11.98470696]
[1760398579059,14.41995722,208.63,208.59,13.39726793]
[1760398579254,2.50491798,208.66,208.62,1.41256097]
[1760398579561,2.50491798,208.66,208.65,2.20691394]
[1760398579761,2.50491798,208.66,208.65,2.89691394]
[1760398581168,2.50627952,208.67,208.65,7.68962901]
[1760398581373,2.50627952,208.67,208.66,2.89691394]
[1760398581894,2.50627952,208.67,208.66,0.69]
[1760398581895,5.01068756,208.67,208.66,0.69]
[1760398582193,5.01068756,208.67,208.66,2.89691394]
[1760398582692,8.48,208.73,208.66,2.89691394]
[1760398582868,10.87647521,208.77,208.72,1.20691394]
[1760398583198,2.50568462,208.8,208.76,6.99710363]
[1760398583362,0.2,208.83,208.77,8.48]
[1760398583567,0.2,208.83,208.81,2.20691394]
[1760398583771,0.2,208.83,208.82,2.20691394]
[1760398584076,0.2,208.83,208.81,2.20691394]
[1760398584277,2.70283465,208.83,208.81,0.69]
[1760398584593,20.8,208.8,208.76,40.71661236]
[1760398585090,2.20691394,208.79,208.76,16.76566391]
[1760398586597,2.20691394,208.79,208.77,0.69]
[1760398586894,2.20691394,208.8,208.77,0.69]
[1760398587079,2.20691394,208.8,208.76,16.76566391]
[1760398587890,2.20691394,208.79,208.76,16.76566391]
[1760398588391,2.20691394,208.8,208.76,17.45566391]
[1760398589190,2.20691394,208.79,208.76,11.97547422]
[1760398589490,2.20691394,208.79,208.76,12.66547422]
[1760398589675,20.8,208.81,208.76,12.66547422]
[1760398589872,2.20691394,208.79,208.76,11.97547422]
[1760398590193,2.20691394,208.77,208.76,11.97547422]
[1760398591092,23.00691394,208.77,208.72,16.76887696]
[1760398591596,23.00691394,208.75,208.73,0.69]
[1760398591991,2.20691394,208.75,208.73,0.69]
[1760398592292,2.20691394,208.75,208.74,4.79064865]
[1760398592497,2.20691394,208.75,208.74,5.48064865]
[1760398593002,2.20691394,208.75,208.74,4.79064865]
[1760398594196,2.20691394,208.75,208.69,11.97916249]
[1760398594197,20.8,208.71,208.69,11.97916249]
[1760398594401,2.20691394,208.7,208.69,11.97916249]
[1760398594613,2.20691394,208.7,208.69,16.77095893]
[1760398595304,23.00691394,208.72,208.69,17.46095893]
[1760398595506,2.20691394,208.71,208.69,17.46095893]
[1760398597109,2.20691394,208.72,208.69,17.46095893]
[1760398600784,20.8,208.73,208.69,17.46095893]
[1760398601103,2.20691394,208.72,208.7,0.69]
[1760398601786,2.20691394,208.72,208.69,11.97916249]
[1760398601996,2.20691394,208.71,208.69,12.66916249]
[1760398602504,2.20691394,208.71,208.69,11.97916249]
[1760398602798,10.87647521,208.77,208.69,11.97916249]
[1760398602799,2.20691394,208.7,208.69,11.97916249]
[1760398604818,23.00691394,208.7,208.69,11.97916249]
[1760398605308,20.8,208.66,208.65,0.68]
[1760398605606,20.8,208.69,208.65,0.68]
[1760398605913,20.8,208.69,208.63,2.20691394]
[1760398605914,20.8,208.69,208.66,0.68]
[1760398606118,20.8,208.69,208.67,4.79225571]
[1760398606613,23.00691394,208.69,208.67,4.79225571]
[1760398607714,20.8,208.69,208.68,0.68]
[1760398609410,20.8,208.69,208.64,0.68]
[1760398609411,23.00691394,208.69,208.64,0.68]
[1760398609627,23.00691394,208.69,208.65,0.68]
[1760398609911,23.00691394,208.69,208.66,0.68]
[1760398610494,20.8,208.69,208.67,0.69]
[1760398610807,20.8,208.69,208.68,0.69]
[1760398611008,23.68691394,208.69,208.62,24.65594868]
[1760398611207,2.20691394,208.65,208.62,0.69]
[1760398611412,2.20691394,208.64,208.63,4.79317451]
[1760398611622,2.20691394,208.65,208.63,4.79317451]
[1760398611814,2.20691394,208.64,208.58,0.69]
[1760398612107,2.20691394,208.6,208.56,0.69]
[1760398612304,2.20691394,208.6,208.57,0.69]
[1760398612501,2.20691394,208.6,208.58,0.69]
[1760398612893,2.20691394,208.6,208.56,0.69]
[1760398613098,20.8,208.61,208.57,0.69]
[1760398613099,2.20691394,208.59,208.57,0.69]
[1760398613516,2.20691394,208.59,208.55,0.69]
[1760398613713,2.20691394,208.59,208.56,0.69]
[1760398614398,2.20691394,208.6,208.57,0.69]
[1760398614695,2.50557843,208.58,208.57,0.69]
[1760398614914,2.50557843,208.58,208.55,0.69]
[1760398615111,4.71249237,208.58,208.55,0.69]
[1760398615426,23.00691394,208.57,208.54,40.75938545]
[1760398615597,23.00691394,208.57,208.55,0.69]
[1760398615996,23.00691394,208.57,208.54,40.75938545]
[1760398616499,23.00691394,208.57,208.55,0.69]
[1760398617510,23.00691394,208.57,208.56,4.79478327]
[1760398619106,20.8,208.57,208.54,35.96414234]
[1760398619305,2.50557843,208.58,208.56,0.69]
[1760398619626,2.50557843,208.58,208.57,0.69]
[1760398619916,2.50557843,208.58,208.55,0.69]
[1760398620121,2.20691394,208.57,208.55,0.69]
[1760398620328,2.20691394,208.56,208.54,11.98810779]
[1760398620519,2.20691394,208.56,208.54,12.67810779]
[1760398620716,2.20691394,208.56,208.54,11.98810779]
[1760398620918,2.20691394,208.55,208.54,11.98810779]
[1760398621233,2.20691394,208.55,208.51,16.78576566]
[1760398621407,2.20691394,208.54,208.51,17.47576566]
[1760398621910,2.20691394,208.54,208.52,0.69]
[1760398622111,2.20691394,208.55,208.52,0.69]
[1760398622496,20.8,208.56,208.52,0.69]
[1760398622921,20.8,208.56,208.53,0.69]
[1760398623325,20.8,208.56,208.54,4.79524311]
[1760398623500,23.00691394,208.56,208.54,4.79524311]
[1760398624125,2.20691394,208.55,208.54,4.79524311]
[1760398624511,2.20691394,208.55,208.53,11.98842333]
[1760398624914,2.20691394,208.54,208.53,11.98842333]
[1760398625425,2.88691394,208.54,208.52,4.79570305]
[1760398625637,31.67647521,208.57,208.52,4.79570305]
[1760398625638,23.68691394,208.53,208.52,4.79570305]
[1760398626207,2.88691394,208.53,208.52,4.79570305]
[1760398626608,2.88691394,208.53,208.51,4.79593304]
[1760398626817,23.00691394,208.52,208.51,4.79593304]
[1760398628534,20.8,208.51,208.5,12.08991132]
[1760398628729,23.00691394,208.51,208.5,12.08991132]
[1760398629324,23.00691394,208.51,208.5,0.1]
[1760398629531,23.68691394,208.51,208.5,0.1]
[1760398630031,2.88691394,208.51,208.5,0.1]
[1760398630230,20.8,208.52,208.5,5.58616306]
[1760398630527,20.8,208.54,208.51,5.48593304]
[1760398630717,14.42758554,208.53,208.52,0.69]
[1760398631231,20.8,208.54,208.52,0.69]
[1760398631412,20.8,208.53,208.52,0.69]
[1760398631934,23.00691394,208.54,208.52,5.48570305]
[1760398634532,10.87647521,208.57,208.53,0.69]
[1760398634714,2.50557843,208.58,208.53,0.69]
[1760398634909,20.8,208.55,208.53,0.69]
[1760398635112,23.00691394,208.56,208.52,16.78496067]
[1760398635315,23.00691394,208.56,208.53,0.69]
[1760398635508,23.00691394,208.57,208.54,0.69]
[1760398635820,2.20691394,208.56,208.54,0.69]
[1760398636133,2.20691394,208.56,208.55,4.79501318]
[1760398636325,20.8,208.57,208.55,4.79501318]
[1760398636520,2.20691394,208.56,208.55,4.79501318]
[1760398637350,20.8,208.57,208.55,4.79501318]
[1760398637517,20.8,208.57,208.56,0.69]
[1760398637831,20.8,208.57,208.55,4.79501318]
[1760398638028,20.8,208.57,208.54,11.98808498]
[1760398638221,20.8,208.57,208.55,0.69]
[1760398638637,20.8,208.57,208.56,0.69]
[1760398638937,23.00691394,208.57,208.54,12.67808498]
[1760398639150,2.20691394,208.56,208.54,11.98808498]
[1760398639313,2.11505991,208.55,208.53,4.79547307]
[1760398639519,2.11505991,208.54,208.51,4.79572826]
[1760398639736,1.41505991,208.52,208.51,4.79572826]
[1760398640246,2.11505991,208.52,208.51,4.79572826]
[1760398640458,1.41505991,208.52,208.51,4.79572826]
[1760398640621,22.21505991,208.53,208.51,5.48572826]
[1760398640940,20.8,208.53,208.52,0.69]
[1760398641314,20.8,208.52,208.51,4.79572826]
[1760398641517,20.8,208.52,208.51,5.48572826]
[1760398641844,22.21505991,208.52,208.51,5.48572826]
[1760398642043,20.8,208.52,208.51,5.48572826]
[1760398642926,20.8,208.52,208.5,0.1]
[1760398642927,33.09153512,208.52,208.5,0.1]
[1760398643219,20.45842599,208.51,208.5,0.1]
[1760398643640,21.15842599,208.51,208.5,0.1]
[1760398643838,15.49818635,208.51,208.5,0.1]
[1760398644069,21.15842599,208.51,208.5,0.1]
[1760398644569,14.08312644,208.51,208.5,0.1]
[1760398644747,23.97818635,208.51,208.5,0.1]
[1760398645276,15.49818635,208.51,208.5,0.1]
[1760398646265,20.29411939,208.51,208.5,0.1]
[1760398646471,2.3074,208.43,208.42,4.79791731]
[1760398647562,2.3074,208.43,208.41,4.79823424]
[1760398648968,2.3074,208.43,208.4,16.79410694]
[1760398649744,2.3074,208.43,208.4,16.29410694]
[1760398649938,2.3074,208.43,208.4,12.18564245]
[1760398651475,2.3074,208.43,208.41,2.10505991]
[1760398651772,2.3074,208.43,208.42,0.69]
[1760398651968,2.3074,208.43,208.42,6.90306394]
[1760398652265,20.8,208.44,208.42,6.90306394]
[1760398652471,20.8,208.44,208.43,1.41505991]
[1760398652970,0.7,208.55,208.43,2.10505991]
[1760398653158,10.87647521,208.51,208.45,1.41505991]
[1760398653356,20.8,208.48,208.45,1.41505991]
[1760398653557,1.41505991,208.54,208.47,1.41505991]
[1760398653771,20.8,208.49,208.45,1.41505991]
[1760398653941,20.8,208.49,208.45,16.79059726]
[1760398656070,20.8,208.49,208.45,11.99328376]
[1760398656271,20.8,208.49,208.45,12.68328376]
[1760398656563,20.8,208.45,208.44,4.79754365]
[1760398657160,23.30823852,208.45,208.44,4.79754365]
[1760398657553,23.30823852,208.45,208.44,0.69]
[1760398658144,23.30823852,208.45,208.43,4.79777383]
[1760398659651,23.30823852,208.45,208.41,4.79823424]
[1760398659854,23.30823852,208.45,208.41,17.48381986]
[1760398660254,2.50763315,208.44,208.41,17.48381986]
[1760398660764,3.92269306,208.44,208.41,4.79823424]
[1760398661569,2.50763315,208.44,208.41,5.48823424]
[1760398661764,1.41505991,208.43,208.41,5.48823424]
[1760398661967,3.92269306,208.44,208.41,5.48823424]
[1760398662179,2.50763315,208.44,208.41,5.48823424]
[1760398662571,2.50763315,208.44,208.41,5.25749424]
[1760398662873,2.50763315,208.44,208.4,11.99606344]
[1760398663055,2.50763315,208.44,208.4,12.68606344]
[1760398663453,2.50763315,208.44,208.41,0.69]
[1760398663669,2.50763315,208.44,208.4,13.41112335]
[1760398663670,2.50763315,208.44,208.42,0.69]
[1760398664752,3.92269306,208.44,208.4,11.99606344]
[1760398664947,2.10505991,208.43,208.4,11.99606344]
[1760398665258,1.41505991,208.42,208.4,11.99606344]
[1760398668674,20.8,208.41,208.4,11.99606344]
[1760398668855,20.8,208.42,208.4,11.99606344]
[1760398669559,20.8,208.42,208.4,11.77046483]
[1760398669965,20.8,208.42,208.4,12.46046483]
[1760398670767,20.8,208.42,208.41,0.69]
[1760398671477,20.8,208.42,208.4,16.56892932]
[1760398671669,20.8,208.42,208.4,17.25892932]
[1760398671866,20.8,208.42,208.41,0.69]
[1760398672581,20.8,208.42,208.41,0.482334]
[1760398672778,20.8,208.42,208.41,5.28056824]
[1760398672959,20.8,208.42,208.41,4.79823424]
[1760398674660,20.8,208.42,208.41,5.48823424]
[1760398675488,22.21505991,208.42,208.41,4.79823424]
[1760398675781,22.21505991,208.42,208.4,16.56892932]
[1760398675967,20.8,208.42,208.4,17.24892932]
[1760398677086,22.21505991,208.42,208.4,11.77046483]
[1760398677460,22.21505991,208.42,208.4,12.45046483]
[1760398677861,22.21505991,208.42,208.4,11.77046483]
[1760398678883,1.41505991,208.41,208.4,11.77046483]
[1760398679684,22.21505991,208.42,208.4,15.17689657]
[1760398680055,22.21505991,208.42,208.41,0.68]
[1760398680282,22.21505991,208.42,208.4,14.49689657]
[1760398680789,1.41505991,208.41,208.4,14.49689657]
[1760398681766,1.41505991,208.41,208.4,9.69843208]
[1760398682081,20.8,208.42,208.4,9.69843208]
[1760398682282,1.41505991,208.41,208.4,9.69843208]
[1760398682864,1.41505991,208.41,208.4,14.49689657]
[1760398683988,22.21505991,208.42,208.4,14.49689657]
[1760398684873,20.8,208.42,208.41,0.68]
[1760398685067,20.8,208.42,208.4,14.49689657]
[1760398685280,22.21505991,208.42,208.4,14.49689657]
[1760398685479,20.8,208.42,208.41,0.68]
[1760398685794,20.8,208.42,208.4,4.79846449]
[1760398686565,21.47,208.42,208.38,0.1]
[1760398687781,20.8,208.42,208.4,16.79452793]
[1760398688696,20.8,208.42,208.4,11.99606344]
[1760398690904,20.8,208.42,208.4,17.47452793]
[1760398691703,20.8,208.42,208.4,16.79452793]
[1760398691900,20.8,208.42,208.4,11.99606344]
[1760398692697,20.8,208.42,208.41,0.67]
[1760398693707,0.68,208.51,208.41,10.58505991]
[1760398693896,1.41505991,208.48,208.44,16.79140279]
[1760398694085,1.41505991,208.45,208.44,16.79140279]
[1760398694479,22.21505991,208.46,208.44,16.79140279]
[1760398695090,20.8,208.46,208.44,16.79140279]
[1760398696003,20.8,208.46,208.44,11.99385914]
[1760398696382,20.8,208.46,208.44,12.66385914]
[1760398697703,20.8,208.46,208.44,11.99385914]
[1760398698011,21.48,208.46,208.44,11.99385914]
[1760398698819,2.09505991,208.45,208.42,4.79800403]
[1760398698984,1.41505991,208.43,208.42,4.79800403]
[1760398699404,2.09505991,208.43,208.42,4.79800403]
[1760398699599,2.09505991,208.43,208.39,4.79869475]
[1760398699805,0.68,208.42,208.39,4.79869475]
[1760398700705,2.09505991,208.42,208.39,4.79869475]
[1760398700896,10.87647521,208.45,208.39,4.79869475]
[1760398701089,20.8,208.42,208.4,0.67]
[1760398701291,20.8,208.42,208.41,0.67]
[1760398701608,20.8,208.45,208.41,0.67]
[1760398701806,21.48,208.45,208.41,0.67]
[1760398702289,21.48,208.45,208.39,19.67784101]
[1760398702714,21.48,208.45,208.39,17.46543163]
[1760398702904,21.48,208.45,208.39,19.67784101]
[1760398703286,0.68,208.44,208.39,16.79543163]
[1760398703502,0.68,208.44,208.4,0.67]
[1760398704389,0.68,208.44,208.38,2.31240938]
[1760398704390,2.89240938,208.43,208.41,16.79381986]
[1760398704801,0.68,208.45,208.41,16.79381986]
[1760398705007,2.21240938,208.44,208.41,16.79381986]
[1760398705392,2.21240938,208.43,208.41,16.79381986]
[1760398705997,0.68,208.44,208.41,16.79381986]
[1760398706298,2.89240938,208.44,208.41,11.99558562]
[1760398706699,23.01240938,208.45,208.42,0.67]
[1760398706905,23.01240938,208.45,208.41,11.99558562]
[1760398707229,23.01240938,208.45,208.42,0.67]
[1760398707419,23.69240938,208.45,208.41,11.99558562]
[1760398707715,23.69240938,208.45,208.41,12.66558562]
[1760398708497,23.69240938,208.45,208.41,17.46381986]
[1760398710116,0.68,208.44,208.39,16.79543163]
[1760398710423,0.68,208.44,208.39,17.46543163]
[1760398710600,23.01240938,208.45,208.4,0.67]
[1760398710803,23.01240938,208.45,208.41,0.67]
[1760398711003,20.8,208.45,208.42,0.67]
[1760398711210,20.8,208.45,208.43,0.67]
[1760398712110,20.8,208.45,208.44,4.79754365]
[1760398712502,13.38471587,208.49,208.44,17.46140279]
[1760398712503,4.72065004,208.49,208.44,17.46140279]
[1760398712707,2.50824066,208.49,208.45,2.88240938]
[1760398712906,2.21240938,208.47,208.44,16.79140279]
[1760398713111,2.89240938,208.46,208.44,16.79140279]
[1760398713523,2.21240938,208.45,208.44,16.79140279]
[1760398714098,2.89240938,208.46,208.44,16.79140279]
[1760398714749,2.89240938,208.46,208.42,16.7930141]
[1760398715013,20.8,208.46,208.42,17.4630141]
[1760398717248,0.68,208.45,208.42,16.7930141]
[1760398717832,23.01240938,208.46,208.42,16.7930141]
[1760398718031,2.21240938,208.44,208.42,16.7930141]
[1760398718552,2.89240938,208.44,208.42,16.7930141]
[1760398719347,2.89240938,208.44,208.42,11.99501007]
[1760398719532,2.21240938,208.44,208.42,11.99501007]
[1760398720158,2.89240938,208.43,208.42,11.99501007]
[1760398720655,2.89240938,208.43,208.41,4.79823424]
[1760398720952,23.01240938,208.44,208.41,4.79823424]
[1760398721333,23.69240938,208.44,208.41,4.79823424]
[1760398721534,0.68,208.43,208.39,40.7889054]
[1760398721733,0.68,208.43,208.39,41.4589054]
[1760398724029,2.21240938,208.44,208.39,41.4589054]
[1760398724229,2.87240938,208.44,208.41,16.79381986]
[1760398724640,2.50772529,208.43,208.41,16.79381986]
[1760398725139,2.50772529,208.43,208.41,17.49381986]
[1760398725749,2.50772529,208.43,208.39,41.4889054]
[1760398726034,4.72013467,208.43,208.39,41.4889054]
[1760398726238,2.87240938,208.42,208.39,40.7889054]
[1760398726442,0.66,208.41,208.39,40.7889054]
[1760398726764,7.22785996,208.43,208.39,41.4889054]
[1760398727360,7.88785996,208.43,208.39,41.4889054]
[1760398728249,28.68785996,208.43,208.39,41.4889054]
[1760398728955,28.68785996,208.43,208.39,40.7889054]
[1760398730263,28.68785996,208.43,208.39,41.4889054]
[1760398730567,20.8,208.41,208.4,0.7]
[1760398731582,20.8,208.42,208.4,0.7]
[1760398732365,20.8,208.42,208.41,4.79823424]
[1760398733462,20.8,208.41,208.39,40.7889054]
[1760398733963,20.8,208.41,208.39,41.4689054]
[1760398734347,20.8,208.41,208.39,40.7889054]
[1760398734748,20.8,208.42,208.41,4.79823424]
[1760398735869,2.93240938,208.42,208.41,4.79823424]
[1760398736052,17.36624228,208.42,208.41,4.79823424]
[1760398736952,17.36624228,208.42,208.39,16.79543163]
[1760398737166,2.21240938,208.4,208.39,16.79543163]
[1760398737368,23.73240938,208.4,208.39,16.79543163]
[1760398738063,2.93240938,208.4,208.39,16.79543163]
[1760398738256,2.93240938,208.4,208.39,4.79869475]
[1760398738656,23.73240938,208.4,208.39,4.79869475]
[1760398739076,2.93240938,208.4,208.39,4.79869475]
[1760398739255,6.61250122,208.4,208.39,4.79869475]
[1760398739462,2.93240938,208.4,208.39,4.79869475]
[1760398739972,23.73240938,208.4,208.39,4.79869475]
[1760398740555,27.5380016,208.4,208.39,4.79869475]
[1760398740756,23.73240938,208.4,208.39,4.79869475]
[1760398740966,2.21240938,208.4,208.39,4.79869475]
[1760398741165,14.31038479,208.41,208.39,4.79869475]
[1760398741475,0.72,208.4,208.39,4.79869475]
[1760398741993,12.09797541,208.41,208.39,5.47869475]
[1760398742289,2.21240938,208.42,208.39,16.79543163]
[1760398742581,14.30944698,208.42,208.39,16.79543163]
[1760398742775,15.02944698,208.42,208.39,16.79543163]
[1760398742990,20.8,208.4,208.39,16.79543163]
[1760398743653,35.82944698,208.42,208.39,16.79543163]
[1760398743853,20.8,208.4,208.39,16.79543163]
[1760398744855,15.02944698,208.42,208.39,17.47543163]
[1760398744856,12.0970376,208.42,208.39,17.47543163]
[1760398745058,2.50772529,208.43,208.4,0.68]
[1760398745059,23.30772529,208.43,208.4,0.68]
[1760398745257,20.8,208.42,208.41,0.68]
[1760398745673,20.8,208.42,208.39,16.79543163]
[1760398745869,20.8,208.42,208.4,0.68]
[1760398746565,20.8,208.42,208.41,4.79823424]
[1760398747356,23.73240938,208.42,208.41,4.79823424]
[1760398747954,23.01240938,208.42,208.41,4.79823424]
[1760398748380,23.01240938,208.42,208.39,16.79543163]
[1760398748681,23.01240938,208.42,208.39,17.47543163]
[1760398749867,20.8,208.42,208.4,0.68]
[1760398750070,23.30772529,208.43,208.41,0.68]
[1760398750267,20.8,208.42,208.39,17.47543163]
[1760398750585,20.8,208.42,208.4,0.68]
[1760398751556,20.8,208.42,208.41,4.79823424]
[1760398752366,32.79673688,208.42,208.41,4.79823424]
[1760398752568,32.79673688,208.42,208.41,5.48823424]
[1760398752765,2.50772529,208.43,208.41,5.48823424]
[1760398752968,16.71687155,208.43,208.41,5.48823424]
[1760398753287,16.71687155,208.43,208.42,0.69]
[1760398753593,16.71687155,208.43,208.42,4.79800403]
[1760398757387,16.71687155,208.43,208.41,4.79823424]
[1760398758889,37.51687155,208.43,208.41,4.79823424]
[1760398759598,20.8,208.41,208.4,16.79462571]
[1760398759889,20.8,208.41,208.4,19.69703509]
[1760398760592,2.50772529,208.43,208.4,19.69703509]
[1760398760778,2.50772529,208.43,208.4,17.48462571]
[1760398761091,14.43105563,208.42,208.4,17.48462571]
[1760398761480,2.50772529,208.43,208.41,5.48823424]
[1760398761688,0.67,208.47,208.42,2.90240938]
[1760398761887,20.8,208.45,208.44,2.21240938]
[1760398762082,2.50824066,208.49,208.44,2.90240938]
[1760398762269,2.50721495,208.45,208.44,2.90240938]
[1760398762469,2.50721495,208.45,208.44,0.69]
[1760398762793,20.8,208.47,208.44,0.69]
[1760398762994,2.50719773,208.45,208.44,0.69]
[1760398763373,2.50719773,208.45,208.44,5.48754365]
[1760398763993,3.17719773,208.45,208.44,4.79754365]
[1760398764693,2.50719773,208.45,208.44,4.79754365]
[1760398764901,2.50719773,208.45,208.44,5.48754365]
[1760398765082,2.50719773,208.45,208.44,4.79754365]
[1760398765980,8.5,208.47,208.44,10.60546082]
[1760398766173,2.08546082,208.54,208.46,1.41546082]
[1760398766372,2.08546082,208.54,208.43,40.78107757]
[1760398766373,2.50666921,208.5,208.47,2.10546082]
[1760398766584,20.8,208.51,208.48,0.69]
[1760398766781,0.67,208.53,208.48,0.69]
[1760398766986,2.50656594,208.5,208.48,0.69]
[1760398767311,2.50656594,208.5,208.49,4.79639311]
[1760398768092,2.50656594,208.5,208.49,6.90185393]
[1760398768886,2.50656594,208.5,208.49,6.21185393]
[1760398769688,2.50656594,208.5,208.48,6.21208399]
[1760398769887,2.50656594,208.5,208.48,6.90208399]
[1760398770086,0.67,208.53,208.48,41.46129699]
[1760398770290,20.8,208.51,208.48,40.77129699]
[1760398770493,0.67,208.5,208.48,40.77129699]
[1760398771498,0.67,208.5,208.48,35.97467382]
[1760398773301,21.47,208.5,208.48,35.97467382]
[1760398774007,22.21546082,208.5,208.48,35.97467382]
[1760398774186,0.67,208.49,208.48,11.99155794]
[1760398774503,35.22619797,208.52,208.48,14.09701876]
[1760398774683,20.8,208.52,208.49,2.10546082]
[1760398775295,20.8,208.52,208.49,1.41546082]
[1760398775507,21.47,208.52,208.49,1.41546082]
[1760398775701,21.47,208.52,208.48,16.78818111]
[1760398775883,21.47,208.52,208.48,26.68364193]
[1760398776208,21.47,208.52,208.48,18.20364193]
[1760398776504,21.47,208.52,208.48,18.89364193]
[1760398776900,21.47,208.52,208.48,16.78818111]
[1760398777101,20.8,208.52,208.48,17.47818111]
[1760398777290,20.8,208.52,208.49,2.10546082]
[1760398777802,20.8,208.5,208.49,2.10546082]
[1760398778099,20.8,208.5,208.49,1.41546082]
[1760398778403,20.8,208.51,208.49,18.20283671]
[1760398779908,20.8,208.51,208.49,14.0964436]
[1760398780094,5.68422999,208.55,208.5,2.10546082]
[1760398780285,0.67,208.54,208.51,1.41546082]
[1760398781088,5.01422999,208.55,208.51,1.41546082]
[1760398781280,0.67,208.53,208.51,1.41546082]
[1760398782005,21.47,208.53,208.52,4.79570305]
[1760398784484,20.8,208.53,208.52,4.79570305]
[1760398784684,23.30652429,208.55,208.52,18.88042149]
[1760398784891,20.8,208.54,208.53,1.41546082]
[1760398785204,20.8,208.54,208.52,18.88042149]
[1760398785602,20.8,208.54,208.52,18.20042149]
[1760398793104,20.8,208.54,208.52,16.78496067]
[1760398794107,0.71,208.53,208.52,11.98925762]
[1760398794904,20.8,208.54,208.52,16.78496067]
[1760398795210,0.71,208.53,208.52,16.78496067]
[1760398796098,2.12546082,208.53,208.52,4.79570305]
[1760398796317,16.55165879,208.53,208.52,4.79570305]
[1760398796706,27.428134,208.53,208.52,4.79570305]
[1760398796907,20.8,208.49,208.42,4.79800403]
[1760398797120,1.41546082,208.45,208.42,4.79800403]
[1760398797298,0.71,208.44,208.42,4.79800403]
[1760398797995,1.41546082,208.45,208.42,4.79800403]
[1760398798187,1.41546082,208.46,208.42,16.7930141]
[1760398798391,1.41546082,208.46,208.43,0.68]
[1760398798613,9.16,208.47,208.42,16.7930141]
[1760398798614,2.12546082,208.45,208.42,16.7930141]
[1760398800221,0.71,208.45,208.42,16.7930141]
[1760398800422,1.41546082,208.46,208.42,17.4730141]
[1760398800615,2.12546082,208.46,208.42,17.4730141]
[1760398801124,10.57546082,208.47,208.43,0.68]
[1760398801337,2.50734419,208.46,208.44,0.68]
[1760398802011,2.50734419,208.46,208.43,8.48]
[1760398802012,2.50734419,208.46,208.43,9.16]
[1760398802330,3.21734419,208.46,208.44,4.79754365]
[1760398802519,1.41546082,208.45,208.44,4.79754365]
[1760398802697,2.12546082,208.45,208.44,4.79754365]
[1760398803223,2.50734419,208.46,208.44,4.79754365]
[1760398803525,2.50734419,208.46,208.45,0.68]
[1760398804024,23.30734419,208.46,208.45,0.68]
[1760398804200,23.30734419,208.46,208.45,5.4773135]
[1760398804602,23.30734419,208.46,208.45,4.7973135]
[1760398804804,24.01734419,208.46,208.45,4.7973135]
[1760398805209,23.30734419,208.46,208.45,4.7973135]
[1760398807332,23.30734419,208.46,208.44,4.79754365]
[1760398807525,9.16,208.49,208.44,4.79754365]
[1760398807526,10.57546082,208.49,208.45,0.68]
[1760398807826,20.8,208.46,208.45,0.68]
[1760398808420,35.93827942,208.5,208.45,0.68]
[1760398808599,20.8,208.47,208.45,0.68]
[1760398809616,20.8,208.47,208.44,42.19458189]
[1760398809818,20.8,208.47,208.44,42.87458189]
[1760398810332,20.8,208.47,208.44,40.77912107]
[1760398810832,20.8,208.47,208.44,41.45912107]
[1760398812355,2.12546082,208.49,208.44,41.45912107]
[1760398812635,0.67,208.48,208.44,41.45912107]
[1760398813137,0.67,208.48,208.44,42.87458189]
[1760398813632,1.41546082,208.46,208.44,16.79140279]
[1760398813818,2.08546082,208.45,208.44,16.79140279]
[1760398814414,1.41546082,208.46,208.44,16.79140279]
[1760398814835,1.41546082,208.46,208.44,11.99385914]
[1760398815019,22.21546082,208.47,208.44,11.99385914]
[1760398815425,1.41546082,208.46,208.44,11.99385914]
[1760398816023,2.08546082,208.46,208.44,11.99385914]
[1760398816630,1.41546082,208.46,208.44,11.99385914]
[1760398817128,22.21546082,208.47,208.44,16.79140279]
[1760398817334,22.88546082,208.47,208.44,16.79140279]
[1760398817637,1.41546082,208.46,208.44,16.79140279]
[1760398818807,0.67,208.45,208.44,16.79140279]
[1760398819414,1.41546082,208.46,208.44,16.79140279]
[1760398819617,2.08546082,208.46,208.44,16.79140279]
[1760398820218,2.08546082,208.46,208.44,11.99385914]